[Event "WYCC 2018 G18"]
[Site "Halkidiki"]
[Date "2018.10.28"]
[Round "9"]
[White "Dimitrova, Aleksandra"]
[Black "Chitlange Sakshi"]
[Result "1-0"]
[ECO "C06"]
[WhiteElo "2228"]
[BlackElo "2237"]
[Annotator "NA"]
[PlyCount "109"]
[EventDate "2018.10.20"]
[EventType "swiss"]
[EventCountry "GRE"]
[SourceTitle "playchess.com"]
[Source "ChessBase"]
[SourceQuality "1"]
[TimeControl "40/5400+30:1800+30"]

1. e4 {[%emt 0:00:00]} e6 {[%emt 0:00:00]} 2. d4 {[%emt 0:00:00]} d5 {[%emt 0:00:00]} 3. Nd2 {[%emt 0:00:03]} Nf6 {[%emt 0:00:08]} 4. e5 {[%emt 0:00:11]} Nfd7 {[%emt 0:00:07]} 5. Bd3 {[%emt 0:01:21]} c5 {[%emt 0:00:07]} 6. c3 {[%emt 0:00:07]} Nc6 {[%emt 0:00:16]} 7. Ne2 {[%emt 0:00:21]} cxd4 {[%emt 0:00:10]} 8. cxd4 {[%emt 0:00:03]} f6 {[%emt 0:00:10]} 9. exf6 {[%emt 0:00:55]} Nxf6 {[%emt 0:00:08]} 10. Nf3 {[%emt 0:01:03]} Bd6 {[%emt 0:00:36]} 11. O-O {[%emt 0:07:22]} Qc7 {[%emt 0:00:07]} 12. Ng3 {[%emt 0:01:14]} O-O {[%emt 0:02:15]} 13. Bg5 {[%emt 0:07:22]} Ng4 {[%emt 0:10:17]} 14. Rc1 {[%emt 0:07:05]} g6 {[%emt 0:01:17]} 15. Bb1 {[%emt 0:07:18]} Qg7 {[%emt 0:06:04]} 16. h3 {[%emt 0:06:52]} Nf6 {[%emt 0:13:42]} 17. Qd2 {[%emt 0:04:34]} Qc7 {[%emt 0:05:44]} 18. Bh6 {[%emt 0:03:42]} Rf7 {[%emt 0:00:47]} 19. Qe3 {[%emt 0:09:34]} Bd7 {[%emt 0:02:03]} 20. Rfe1 {[%emt 0:04:50]} Qb6 {[%emt 0:04:33]} 21. b3 {[%emt 0:08:45]} Re8 {[%emt 0:02:43]} 22. Ne5 {[%emt 0:07:55]} Qxd4 {[%emt 0:08:15]} 23. Nxf7 {[%emt 0:01:24]} Kxf7 {[%emt 0:00:16]} 24. Qxd4 {[%emt 0:00:49]} Nxd4 {[%emt 0:00:01]} 25. Be3 {[%emt 0:00:30]} Nc6 {[%emt 0:01:34]} 26. f4 {[%emt 0:01:09]} e5 {[%emt 0:06:26]} 27. fxe5 {[%emt 0:01:05]} Rxe5 {[%emt 0:00:06]} 28. Nf1 {[%emt 0:02:12]} d4 {[%emt 0:04:06]} 29. Bd2 {[%emt 0:01:05]} Rd5 {[%emt 0:00:47]} 30. Nh2 {[%emt 0:02:31]} Ne5 {[%emt 0:02:55]} 31. Rf1 {[%emt 0:01:30]} Bb5 {[%emt 0:02:59]} 32. Rf2 {[%emt 0:02:26]} Nd3 {[%emt 0:03:06]} 33. Bxd3 {[%emt 0:00:28]} Bxd3 {[%emt 0:00:00]} 34. Ng4 {[%emt 0:00:42]} Rf5 {[%emt 0:00:33]} 35. Nh6+ {[%emt 0:00:52]} Ke6 {[%emt 0:00:16]} 36. Nxf5 {[%emt 0:00:25]} gxf5 {[%emt 0:00:07]} 37. Bf4 {[%emt 0:01:08]} Bb4 {[%emt 0:04:35]} 38. Rd1 {[%emt 0:02:13]} Be4 {[%emt 0:00:34]} 39. Rxd4 {[%emt 0:01:24]} Bc5 {[%emt 0:00:24]} 40. Be3 {[%emt 0:00:00]} Bxd4 {[%emt 0:00:00]} 41. Bxd4 {[%emt 0:02:32]} a6 {[%emt 0:05:55]} 42. Bxf6 {[%emt 0:03:10]} Kxf6 {[%emt 0:00:01]} 43. Kh2 {[%emt 0:00:44]} Ke5 {[%emt 0:02:15]} 44. Kg3 {[%emt 0:02:06]} Bd3 {[%emt 0:00:57]} 45. Rf4 {[%emt 0:05:23]} Kf6 {[%emt 0:02:10]} 46. Rd4 {[%emt 0:04:24]} Bb5 {[%emt 0:00:39]} 47. Kf4 {[%emt 0:00:29]} Ke6 {[%emt 0:00:56]} 48. g3 {[%emt 0:00:17]} Bf1 {[%emt 0:01:15]} 49. h4 {[%emt 0:00:09]} Be2 {[%emt 0:00:18]} 50. Rd8 {[%emt 0:00:59]} Bb5 {[%emt 0:04:43]} 51. Rh8 {[%emt 0:00:40]} Bc6 {[%emt 0:01:53]} 52. Rxh7 {[%emt 0:00:17]} Be4 {[%emt 0:00:10]} 53. Rh6+ {[%emt 0:00:52]} Kf7 {[%emt 0:00:07]} 54. Rb6 {[%emt 0:01:18]} Kg7 {[%emt 0:00:20]} 55. g4 {[%emt 0:00:56]} 1-0

[Event "WYCC 2018 G18"]
[Site "Halkidiki"]
[Date "2018.10.28"]
[Round "9"]
[White "Martynkova, Olena"]
[Black "Prakapuk, Vera"]
[Result "1-0"]
[ECO "E05"]
[WhiteElo "2188"]
[BlackElo "1949"]
[Annotator "NA"]
[PlyCount "103"]
[EventDate "2018.10.20"]
[EventType "swiss"]
[EventCountry "GRE"]
[SourceTitle "playchess.com"]
[Source "ChessBase"]
[SourceQuality "1"]
[TimeControl "40/5400+30:1800+30"]

1. d4 {[%emt 0:00:00]} d5 {[%emt 0:00:00]} 2. c4 {[%emt 0:00:00]} e6 {[%emt 0:00:00]} 3. Nf3 {[%emt 0:00:11]} Nf6 {[%emt 0:00:03]} 4. g3 {[%emt 0:00:27]} dxc4 {[%emt 0:01:14]} 5. Bg2 {[%emt 0:01:03]} Be7 {[%emt 0:00:59]} 6. O-O {[%emt 0:01:07]} O-O {[%emt 0:00:26]} 7. Qc2 {[%emt 0:00:32]} a6 {[%emt 0:00:20]} 8. a4 {[%emt 0:00:28]} c6 {[%emt 0:13:45]} 9. Qxc4 {[%emt 0:05:43]} b5 {[%emt 0:00:18]} 10. Qc2 {[%emt 0:00:43]} Bb7 {[%emt 0:00:40]} 11. Nbd2 {[%emt 0:12:48]} Nbd7 {[%emt 0:04:58]} 12. Nb3 {[%emt 0:02:03]} Rc8 {[%emt 0:03:46]} 13. Nc5 {[%emt 0:03:44]} Bxc5 {[%emt 0:03:40]} 14. dxc5 {[%emt 0:00:16]} Qe7 {[%emt 0:00:24]} 15. b4 {[%emt 0:04:35]} Nd5 {[%emt 0:15:54]} 16. Bd2 {[%emt 0:07:24]} a5 {[%emt 0:08:46]} 17. Rfc1 {[%emt 0:12:25]} Nxb4 {[%emt 0:02:17]} 18. Bxb4 {[%emt 0:00:14]} axb4 {[%emt 0:00:03]} 19. Qb3 {[%emt 0:04:20]} bxa4 {[%emt 0:05:52]} 20. Qxb4 {[%emt 0:07:21]} Ba6 {[%emt 0:03:51]} 21. Rxa4 {[%emt 0:01:12]} Bxe2 {[%emt 0:03:31]} 22. Nd4 {[%emt 0:01:38]} Bb5 {[%emt 0:00:43]} 23. Ra7 {[%emt 0:01:38]} Rfd8 {[%emt 0:04:29]} 24. Nxb5 {[%emt 0:03:22]} cxb5 {[%emt 0:00:06]} 25. Qxb5 {[%emt 0:00:27]} g6 {[%emt 0:12:00]} 26. c6 {[%emt 0:03:57]} Qd6 {[%emt 0:00:21]} 27. c7 {[%emt 0:10:04]} Rf8 {[%emt 0:00:05]} 28. Ra6 {[%emt 0:01:49]} Qd2 {[%emt 0:01:29]} 29. Raa1 {[%emt 0:01:32]} Nf6 {[%emt 0:04:10]} 30. Rd1 {[%emt 0:02:58]} Qh6 {[%emt 0:01:23]} 31. Rac1 {[%emt 0:01:07]} Ng4 {[%emt 0:02:26]} 32. h3 {[%emt 0:00:57]} Nf6 {[%emt 0:01:16]} 33. h4 {[%emt 0:01:05]} Ne8 {[%emt 0:01:07]} 34. Qb6 {[%emt 0:05:37]} g5 {[%emt 0:04:35]} 35. hxg5 {[%emt 0:02:27]} Qxg5 {[%emt 0:00:08]} 36. Bb7 {[%emt 0:00:42]} Rxc7 {[%emt 0:00:06]} 37. Rxc7 {[%emt 0:00:09]} Nxc7 {[%emt 0:00:03]} 38. Qxc7 {[%emt 0:00:07]} h5 {[%emt 0:01:01]} 39. Rd4 {[%emt 0:00:18]} Kg7 {[%emt 0:01:11]} 40. Bf3 {[%emt 0:00:00]} e5 {[%emt 0:00:00]} 41. Rd5 {[%emt 0:07:55]} Re8 {[%emt 0:01:22]} 42. Rd7 {[%emt 0:02:30]} Qf5 {[%emt 0:06:34]} 43. Rxf7+ {[%emt 0:03:13]} Qxf7 {[%emt 0:00:06]} 44. Qxf7+ {[%emt 0:00:04]} Kxf7 {[%emt 0:00:03]} 45. Bxh5+ {[%emt 0:00:06]} Ke7 {[%emt 0:00:04]} 46. Bxe8 {[%emt 0:00:09]} Kxe8 {[%emt 0:00:03]} 47. Kg2 {[%emt 0:00:42]} Kf7 {[%emt 0:00:59]} 48. Kf3 {[%emt 0:00:30]} Ke6 {[%emt 0:02:00]} 49. Ke4 {[%emt 0:00:23]} Kf6 {[%emt 0:00:05]} 50. g4 {[%emt 0:00:15]} Kg5 {[%emt 0:00:09]} 51. Kxe5 {[%emt 0:01:01]} Kxg4 {[%emt 0:00:04]} 52. f4 {[%emt 0:00:15]} 1-0

[Event "WYCC 2018 G18"]
[Site "Halkidiki"]
[Date "2018.10.28"]
[Round "9"]
[White "Radeva, Viktoria"]
[Black "Tarini Goyal"]
[Result "1/2-1/2"]
[ECO "B38"]
[WhiteElo "2163"]
[BlackElo "2026"]
[Annotator "NA"]
[PlyCount "67"]
[EventDate "2018.10.20"]
[EventType "swiss"]
[EventCountry "GRE"]
[SourceTitle "playchess.com"]
[Source "ChessBase"]
[SourceQuality "1"]
[TimeControl "40/5400+30:1800+30"]

1. e4 {[%emt 0:00:00]} c5 {[%emt 0:00:41]} 2. Nf3 {[%emt 0:00:00]} Nc6 {[%emt 0:00:48]} 3. d4 {[%emt 0:00:00]} cxd4 {[%emt 0:00:06]} 4. Nxd4 {[%emt 0:00:00]} g6 {[%emt 0:00:05]} 5. c4 {[%emt 0:00:45]} Bg7 {[%emt 0:00:07]} 6. Be3 {[%emt 0:00:05]} Nf6 {[%emt 0:00:15]} 7. Nc3 {[%emt 0:00:07]} O-O {[%emt 0:00:20]} 8. Be2 {[%emt 0:00:42]} d6 {[%emt 0:00:28]} 9. O-O {[%emt 0:01:15]} Bd7 {[%emt 0:00:22]} 10. Qd2 {[%emt 0:03:37]} Nxd4 {[%emt 0:00:48]} 11. Bxd4 {[%emt 0:00:09]} Bc6 {[%emt 0:02:13]} 12. f3 {[%emt 0:00:16]} a5 {[%emt 0:00:10]} 13. b3 {[%emt 0:00:19]} Nd7 {[%emt 0:00:35]} 14. Bxg7 {[%emt 0:07:43]} Kxg7 {[%emt 0:00:08]} 15. f4 {[%emt 0:00:14]} a4 {[%emt 0:05:36]} 16. Rab1 {[%emt 0:18:26]} axb3 {[%emt 0:01:59]} 17. axb3 {[%emt 0:02:46]} Qb6+ {[%emt 0:02:21]} 18. Kh1 {[%emt 0:00:05]} Qb4 {[%emt 0:07:50]} 19. f5 {[%emt 0:06:35]} Ra3 {[%emt 0:20:41]} 20. Bd1 {[%emt 0:16:58]} Ne5 {[%emt 0:15:09]} 21. Rf4 {[%emt 0:11:40]} g5 {[%emt 0:04:35]} 22. Rf1 {[%emt 0:04:20]} f6 {[%emt 0:00:16]} 23. Rc1 {[%emt 0:03:04]} Rfa8 {[%emt 0:04:23]} 24. Qd4 {[%emt 0:05:10]} Qc5 {[%emt 0:04:16]} 25. Qxc5 {[%emt 0:03:24]} dxc5 {[%emt 0:00:09]} 26. Kg1 {[%emt 0:04:45]} Ra1 {[%emt 0:14:18]} 27. Rxa1 {[%emt 0:01:49]} Rxa1 {[%emt 0:00:06]} 28. Be2 {[%emt 0:00:15]} Ra3 {[%emt 0:07:10]} 29. Rb1 {[%emt 0:00:18]} Kf8 {[%emt 0:00:25]} 30. Kf2 {[%emt 0:01:11]} Ke8 {[%emt 0:00:38]} 31. Ke3 {[%emt 0:00:42]} Kd8 {[%emt 0:00:23]} 32. Kd2 {[%emt 0:01:47]} Kc7 {[%emt 0:02:26]} 33. Kc2 {[%emt 0:06:49]} Ra8 {[%emt 0:00:38]} 34. g3 {[%emt 0:01:08]} 1/2-1/2

[Event "WYCC 2018 G18"]
[Site "Halkidiki"]
[Date "2018.10.28"]
[Round "9"]
[White "Represa Perez, Mireya"]
[Black "Cosme Contreras, Trilce"]
[Result "0-1"]
[ECO "B53"]
[WhiteElo "2151"]
[BlackElo "1829"]
[Annotator "NA"]
[PlyCount "96"]
[EventDate "2018.10.20"]
[EventType "swiss"]
[EventCountry "GRE"]
[SourceTitle "playchess.com"]
[Source "ChessBase"]
[SourceQuality "1"]
[TimeControl "40/5400+30:1800+30"]

1. e4 {[%emt 0:00:00]} c5 {[%emt 0:00:00]} 2. Nf3 {[%emt 0:00:00]} d6 {[%emt 0:00:00]} 3. d4 {[%emt 0:00:00]} cxd4 {[%emt 0:00:00]} 4. Qxd4 {[%emt 0:00:00]} Nc6 {[%emt 0:00:00]} 5. Bb5 {[%emt 0:00:03]} Bd7 {[%emt 0:00:30]} 6. Bxc6 {[%emt 0:00:09]} bxc6 {[%emt 0:03:04]} 7. c4 {[%emt 0:00:43]} c5 {[%emt 0:03:39]} 8. Qd3 {[%emt 0:01:32]} g6 {[%emt 0:02:54]} 9. O-O {[%emt 0:03:53]} Bg7 {[%emt 0:00:34]} 10. Rd1 {[%emt 0:04:20]} Qc7 {[%emt 0:01:47]} 11. Nc3 {[%emt 0:01:20]} Nf6 {[%emt 0:01:03]} 12. Bf4 {[%emt 0:09:10]} Qb7 {[%emt 0:15:12]} 13. Rd2 {[%emt 0:20:29]} O-O {[%emt 0:06:21]} 14. h3 {[%emt 0:01:13]} Bc6 {[%emt 0:02:48]} 15. Re1 {[%emt 0:01:48]} h6 {[%emt 0:18:44]} 16. Nd5 {[%emt 0:09:39]} Bxd5 {[%emt 0:08:33]} 17. exd5 {[%emt 0:05:20]} Rad8 {[%emt 0:05:17]} 18. Qe3 {[%emt 0:07:58]} Kh7 {[%emt 0:02:58]} 19. Qxe7 {[%emt 0:04:40]} Rd7 {[%emt 0:00:07]} 20. Qe2 {[%emt 0:01:45]} Re8 {[%emt 0:00:28]} 21. Qd1 {[%emt 0:01:54]} Rxe1+ {[%emt 0:00:41]} 22. Qxe1 {[%emt 0:02:19]} Nh5 {[%emt 0:00:54]} 23. Bh2 {[%emt 0:01:29]} Bxb2 {[%emt 0:01:21]} 24. g4 {[%emt 0:02:16]} Ng7 {[%emt 0:02:14]} 25. Qb1 {[%emt 0:01:18]} Be5 {[%emt 0:00:58]} 26. Qd3 {[%emt 0:05:19]} Bxh2+ {[%emt 0:04:08]} 27. Kxh2 {[%emt 0:00:08]} Rd8 {[%emt 0:03:02]} 28. Re2 {[%emt 0:04:53]} Qd7 {[%emt 0:01:15]} 29. Nd2 {[%emt 0:00:57]} f5 {[%emt 0:01:53]} 30. g5 {[%emt 0:02:41]} Re8 {[%emt 0:04:24]} 31. gxh6 {[%emt 0:02:09]} Kxh6 {[%emt 0:00:55]} 32. Nf3 {[%emt 0:00:32]} Rxe2 33. Qxe2 {[%emt 0:00:04]} f4 {[%emt 0:02:25]} 34. Nh4 {[%emt 0:03:43]} g5 {[%emt 0:03:21]} 35. Ng2 {[%emt 0:00:07]} Qe8 {[%emt 0:00:48]} 36. Qg4 {[%emt 0:00:55]} Qe5 {[%emt 0:00:53]} 37. Qf3 {[%emt 0:01:10]} Nf5 {[%emt 0:00:46]} 38. Kg1 {[%emt 0:02:01]} Nd4 {[%emt 0:00:52]} 39. Qg4 {[%emt 0:00:59]} Qe4 {[%emt 0:01:55]} 40. Kf1 {[%emt 0:00:00]} Qd3+ {[%emt 0:00:00]} 41. Kg1 {[%emt 0:01:53]} Nf3+ {[%emt 0:00:46]} 42. Qxf3 {[%emt 0:02:00]} Qxf3 {[%emt 0:00:05]} 43. h4 {[%emt 0:00:21]} g4 {[%emt 0:00:11]} 44. Ne1 {[%emt 0:00:35]} Qh3 {[%emt 0:00:11]} 45. Ng2 {[%emt 0:00:12]} f3 {[%emt 0:00:33]} 46. Ne3 {[%emt 0:00:07]} Kg6 {[%emt 0:00:16]} 47. a4 {[%emt 0:00:40]} a5 {[%emt 0:00:24]} 48. h5+ {[%emt 0:00:23]} Kxh5 {[%emt 0:00:10]} 0-1

[Event "WYCC 2018 G18"]
[Site "Halkidiki"]
[Date "2018.10.28"]
[Round "9"]
[White "Rozman, Monika"]
[Black "Belluire, Beatrice"]
[Result "1-0"]
[ECO "C07"]
[WhiteElo "2141"]
[BlackElo "1931"]
[Annotator "NA"]
[PlyCount "109"]
[EventDate "2018.10.20"]
[EventType "swiss"]
[EventCountry "GRE"]
[SourceTitle "playchess.com"]
[Source "ChessBase"]
[SourceQuality "1"]
[TimeControl "40/5400+30:1800+30"]

1. e4 {[%emt 0:00:00]} e6 {[%emt 0:00:00]} 2. d4 {[%emt 0:00:02]} d5 {[%emt 0:00:00]} 3. Nd2 {[%emt 0:01:30]} c5 {[%emt 0:00:00]} 4. exd5 {[%emt 0:00:19]} Qxd5 {[%emt 0:00:00]} 5. Ngf3 {[%emt 0:00:05]} cxd4 {[%emt 0:00:00]} 6. Bc4 {[%emt 0:00:05]} Qd7 {[%emt 0:00:00]} 7. O-O {[%emt 0:00:44]} Nc6 {[%emt 0:00:34]} 8. Nb3 {[%emt 0:00:54]} Nf6 {[%emt 0:00:45]} 9. Nbxd4 {[%emt 0:00:20]} Nxd4 {[%emt 0:00:04]} 10. Nxd4 {[%emt 0:00:05]} a6 {[%emt 0:00:04]} 11. Re1 {[%emt 0:00:24]} Qc7 {[%emt 0:00:07]} 12. Bf1 {[%emt 0:00:08]} Bd6 {[%emt 0:00:45]} 13. Nf5 {[%emt 0:01:50]} Bxh2+ {[%emt 0:00:29]} 14. Kh1 {[%emt 0:00:09]} Kf8 {[%emt 0:02:44]} 15. Qd4 {[%emt 0:03:10]} exf5 {[%emt 0:00:19]} 16. Qxf6 {[%emt 0:00:48]} h5 {[%emt 0:00:07]} 17. Qd4 {[%emt 0:12:32]} Bd6 {[%emt 0:18:29]} 18. Bg5 {[%emt 0:14:07]} Be6 {[%emt 0:02:55]} 19. Rad1 {[%emt 0:03:43]} Be7 {[%emt 0:02:34]} 20. Bxe7+ {[%emt 0:02:30]} Qxe7 {[%emt 0:00:23]} 21. Bc4 {[%emt 0:02:53]} Rh6 {[%emt 0:02:37]} 22. Re3 {[%emt 0:15:33]} Re8 {[%emt 0:13:28]} 23. Bb3 {[%emt 0:08:46]} Qf6 {[%emt 0:04:20]} 24. Qb4+ {[%emt 0:03:44]} Qe7 {[%emt 0:03:25]} 25. Qd4 {[%emt 0:00:07]} Qf6 {[%emt 0:00:20]} 26. Qb4+ {[%emt 0:09:59]} Qe7 {[%emt 0:00:10]} 27. Qd4 {[%emt 0:01:53]} Rg6 {[%emt 0:11:47]} 28. Rde1 {[%emt 0:01:35]} Rg4 {[%emt 0:03:25]} 29. Qe5 {[%emt 0:01:41]} Qh4+ {[%emt 0:02:21]} 30. Kg1 {[%emt 0:03:44]} Qg5 {[%emt 0:03:23]} 31. Bd5 {[%emt 0:00:58]} f4 {[%emt 0:08:15]} 32. Qd6+ {[%emt 0:00:35]} Qe7 {[%emt 0:01:55]} 33. Qxe7+ {[%emt 0:03:09]} Rxe7 {[%emt 0:01:11]} 34. Re5 {[%emt 0:01:07]} Rg6 {[%emt 0:02:27]} 35. Rxh5 {[%emt 0:00:32]} Ke8 {[%emt 0:00:48]} 36. Rh8+ {[%emt 0:00:51]} Kd7 {[%emt 0:00:09]} 37. Bxb7 {[%emt 0:00:40]} Bxa2 {[%emt 0:02:22]} 38. Rxe7+ {[%emt 0:01:29]} Kxe7 {[%emt 0:00:05]} 39. b3 {[%emt 0:01:06]} Rb6 {[%emt 0:04:40]} 40. Be4 {[%emt 0:00:00]} Bxb3 {[%emt 0:00:00]} 41. cxb3 {[%emt 0:02:56]} Rxb3 {[%emt 0:07:01]} 42. Ra8 {[%emt 0:02:28]} Ra3 {[%emt 0:01:05]} 43. Kh2 {[%emt 0:01:25]} Ra2 {[%emt 0:02:09]} 44. f3 {[%emt 0:00:29]} g6 {[%emt 0:02:40]} 45. Bd5 {[%emt 0:01:45]} Ra1 {[%emt 0:06:36]} 46. Ra7+ {[%emt 0:01:15]} Kd6 {[%emt 0:00:04]} 47. Bxf7 {[%emt 0:00:14]} g5 {[%emt 0:00:33]} 48. Bc4 {[%emt 0:05:18]} a5 {[%emt 0:00:05]} 49. Rg7 {[%emt 0:00:11]} Kc5 {[%emt 0:01:01]} 50. Bg8 {[%emt 0:02:08]} Kd4 {[%emt 0:00:45]} 51. Rxg5 {[%emt 0:00:12]} Ke3 {[%emt 0:00:12]} 52. Re5+ {[%emt 0:00:50]} Kf2 {[%emt 0:00:17]} 53. Bc4 {[%emt 0:02:31]} Rc1 {[%emt 0:00:48]} 54. Re2+ {[%emt 0:00:18]} Kf1 {[%emt 0:00:06]} 55. Rc2+ {[%emt 0:00:06]} 1-0

[Event "WYCC 2018 G18"]
[Site "Halkidiki"]
[Date "2018.10.28"]
[Round "9"]
[White "Egyed, Judit"]
[Black "Dong, Khanh Linh"]
[Result "0-1"]
[ECO "C00"]
[WhiteElo "2089"]
[BlackElo "1879"]
[Annotator "NA"]
[PlyCount "80"]
[EventDate "2018.10.20"]
[EventType "swiss"]
[EventCountry "GRE"]
[SourceTitle "playchess.com"]
[Source "ChessBase"]
[SourceQuality "1"]
[TimeControl "40/5400+30:1800+30"]

1. e4 {[%emt 0:00:00]} e6 {[%emt 0:00:00]} 2. Qe2 Nf6 {[%emt 0:01:12]} 3. g3 {[%emt 0:00:02]} d5 {[%emt 0:01:00]} 4. d3 dxe4 {[%emt 0:01:49]} 5. dxe4 {[%emt 0:00:55]} Bd7 {[%emt 0:01:28]} 6. Bg2 {[%emt 0:03:17]} Bc6 {[%emt 0:00:52]} 7. Nd2 {[%emt 0:03:14]} Bc5 {[%emt 0:08:15]} 8. Nb3 {[%emt 0:08:22]} Nbd7 {[%emt 0:07:51]} 9. Bd2 {[%emt 0:08:13]} Qe7 {[%emt 0:05:41]} 10. Na5 {[%emt 0:14:26]} Qd6 {[%emt 0:12:33]} 11. O-O-O {[%emt 0:07:27]} e5 {[%emt 0:07:05]} 12. Kb1 {[%emt 0:09:45]} O-O {[%emt 0:07:02]} 13. g4 {[%emt 0:03:53]} b6 {[%emt 0:05:04]} 14. Bc3 {[%emt 0:06:05]} Qe6 {[%emt 0:05:28]} 15. Nxc6 {[%emt 0:00:13]} Qxc6 {[%emt 0:00:10]} 16. g5 {[%emt 0:00:24]} Ne8 {[%emt 0:00:14]} 17. f4 {[%emt 0:03:50]} Nd6 {[%emt 0:03:21]} 18. Be1 {[%emt 0:12:22]} Rad8 {[%emt 0:03:37]} 19. Bh4 {[%emt 0:01:23]} g6 {[%emt 0:07:44]} 20. Bg3 {[%emt 0:04:36]} Qa4 {[%emt 0:06:11]} 21. Nh3 {[%emt 0:04:52]} Nb5 {[%emt 0:02:19]} 22. Bf2 {[%emt 0:01:30]} Qb4 {[%emt 0:04:59]} 23. Rd3 {[%emt 0:02:22]} Bxf2 {[%emt 0:00:29]} 24. Nxf2 {[%emt 0:01:36]} Nc5 {[%emt 0:00:13]} 25. Rh3 {[%emt 0:01:29]} Na4 {[%emt 0:03:36]} 26. Rb3 {[%emt 0:00:53]} Nbc3+ {[%emt 0:01:07]} 27. bxc3 {[%emt 0:00:26]} Nxc3+ {[%emt 0:00:08]} 28. Kb2 {[%emt 0:00:30]} Qxb3+ {[%emt 0:00:08]} 29. axb3 {[%emt 0:00:03]} Nxe2 {[%emt 0:00:04]} 30. fxe5 {[%emt 0:00:54]} Rd2 {[%emt 0:00:44]} 31. Rf1 {[%emt 0:00:57]} Nf4 {[%emt 0:02:05]} 32. Bh1 {[%emt 0:00:54]} c5 {[%emt 0:01:27]} 33. Ng4 {[%emt 0:00:29]} Ne6 {[%emt 0:00:06]} 34. Kc3 {[%emt 0:00:42]} Rd4 {[%emt 0:00:52]} 35. h4 b5 36. Rf2 {[%emt 0:01:04]} a5 {[%emt 0:01:24]} 37. Bf3 {[%emt 0:00:43]} a4 38. Nf6+ Kh8 {[%emt 0:01:17]} 39. Rh2 {[%emt 0:00:58]} a3 40. Bg4 {[%emt 0:00:00]} b4# {[%emt 0:00:00]} 0-1

[Event "WYCC 2018 G18"]
[Site "Halkidiki"]
[Date "2018.10.28"]
[Round "9"]
[White "Janiashvili, Mariami"]
[Black "Kieu, Bich Thuy"]
[Result "1-0"]
[ECO "B09"]
[WhiteElo "2081"]
[BlackElo "1913"]
[Annotator "NA"]
[PlyCount "151"]
[EventDate "2018.10.20"]
[EventType "swiss"]
[EventCountry "GRE"]
[SourceTitle "playchess.com"]
[Source "ChessBase"]
[SourceQuality "1"]
[TimeControl "40/5400+30:1800+30"]

1. e4 {[%emt 0:00:00]} g6 {[%emt 0:00:00]} 2. d4 {[%emt 0:00:00]} Bg7 {[%emt 0:00:00]} 3. Nc3 {[%emt 0:00:00]} d6 {[%emt 0:00:00]} 4. f4 {[%emt 0:00:00]} Nf6 {[%emt 0:01:15]} 5. Nf3 {[%emt 0:00:07]} O-O {[%emt 0:00:10]} 6. Bd3 {[%emt 0:00:30]} Na6 {[%emt 0:02:18]} 7. O-O {[%emt 0:00:34]} c5 {[%emt 0:00:42]} 8. d5 {[%emt 0:00:08]} Bg4 {[%emt 0:01:59]} 9. a3 {[%emt 0:00:23]} Nc7 {[%emt 0:02:03]} 10. h3 {[%emt 0:00:16]} Bxf3 {[%emt 0:00:40]} 11. Qxf3 {[%emt 0:00:04]} e6 {[%emt 0:10:49]} 12. f5 {[%emt 0:05:50]} exd5 {[%emt 0:05:30]} 13. exd5 {[%emt 0:00:02]} Nd7 {[%emt 0:09:50]} 14. Qg3 {[%emt 0:00:49]} Ne5 {[%emt 0:02:23]} 15. Bg5 {[%emt 0:02:15]} f6 {[%emt 0:02:42]} 16. Bd2 {[%emt 0:02:00]} g5 {[%emt 0:03:24]} 17. h4 {[%emt 0:07:24]} h6 {[%emt 0:03:16]} 18. Be2 {[%emt 0:03:07]} Qd7 {[%emt 0:09:39]} 19. a4 {[%emt 0:06:16]} Rae8 {[%emt 0:12:53]} 20. Rae1 {[%emt 0:12:54]} Nf7 {[%emt 0:03:00]} 21. hxg5 {[%emt 0:02:42]} hxg5 {[%emt 0:02:05]} 22. Bh5 {[%emt 0:06:23]} Rxe1 {[%emt 0:05:24]} 23. Bxe1 {[%emt 0:02:43]} Re8 {[%emt 0:04:36]} 24. Bg6 {[%emt 0:01:07]} Re5 {[%emt 0:03:15]} 25. Qf3 {[%emt 0:01:20]} Re7 {[%emt 0:03:43]} 26. Qh5 {[%emt 0:04:44]} Nh6 {[%emt 0:00:44]} 27. Bd2 {[%emt 0:00:57]} Re5 {[%emt 0:00:45]} 28. Qf3 {[%emt 0:00:48]} Nf7 {[%emt 0:01:04]} 29. Kf2 {[%emt 0:04:08]} Qe7 {[%emt 0:01:36]} 30. Rh1 {[%emt 0:02:59]} Nh6 {[%emt 0:01:08]} 31. Rh5 {[%emt 0:02:49]} Nf7 {[%emt 0:01:58]} 32. Rh1 {[%emt 0:07:26]} Nh6 {[%emt 0:00:12]} 33. g4 {[%emt 0:01:48]} Nf7 {[%emt 0:01:15]} 34. Rd1 {[%emt 0:00:40]} Nh6 {[%emt 0:00:59]} 35. Bc1 {[%emt 0:00:41]} Bf8 {[%emt 0:02:12]} 36. b3 {[%emt 0:00:22]} Bg7 {[%emt 0:00:42]} 37. Rd3 {[%emt 0:04:28]} Na6 {[%emt 0:02:29]} 38. Bh5 {[%emt 0:08:05]} Nb4 {[%emt 0:00:34]} 39. Rd2 {[%emt 0:00:10]} Re1 {[%emt 0:01:17]} 40. Ne2 {[%emt 0:00:00]} Rxc1 {[%emt 0:00:00]} 41. Nxc1 {[%emt 0:02:31]} Qe5 {[%emt 0:04:03]} 42. Re2 {[%emt 0:04:36]} Qd4+ {[%emt 0:00:48]} 43. Kg2 {[%emt 0:15:08]} Nxd5 {[%emt 0:10:48]} 44. Nd3 {[%emt 0:00:53]} Bf8 {[%emt 0:00:11]} 45. Qe4 {[%emt 0:07:07]} Qxe4+ {[%emt 0:01:11]} 46. Rxe4 {[%emt 0:00:01]} Nc7 {[%emt 0:04:03]} 47. c4 {[%emt 0:04:20]} Nf7 {[%emt 0:03:55]} 48. Bxf7+ {[%emt 0:00:06]} Kxf7 {[%emt 0:00:02]} 49. Kf3 {[%emt 0:00:24]} d5 {[%emt 0:01:21]} 50. cxd5 {[%emt 0:00:05]} Nxd5 {[%emt 0:00:08]} 51. Rc4 {[%emt 0:02:26]} b6 {[%emt 0:00:42]} 52. Ke4 {[%emt 0:00:09]} Nc7 {[%emt 0:00:48]} 53. b4 {[%emt 0:01:21]} Na6 {[%emt 0:00:09]} 54. bxc5 {[%emt 0:00:19]} Nxc5+ {[%emt 0:00:11]} 55. Nxc5 {[%emt 0:00:46]} Bxc5 {[%emt 0:00:08]} 56. Kd5 {[%emt 0:00:09]} Ke7 {[%emt 0:00:29]} 57. Kc6 {[%emt 0:03:25]} Bf2 {[%emt 0:02:29]} 58. Rc2 {[%emt 0:00:39]} Bg1 {[%emt 0:00:27]} 59. Rg2 {[%emt 0:01:32]} Bc5 {[%emt 0:00:10]} 60. Rh2 {[%emt 0:00:07]} a5 {[%emt 0:01:52]} 61. Rh7+ {[%emt 0:00:09]} Kd8 {[%emt 0:00:11]} 62. Rb7 {[%emt 0:00:24]} Ke8 {[%emt 0:01:04]} 63. Rxb6 {[%emt 0:01:05]} Bxb6 {[%emt 0:00:06]} 64. Kxb6 {[%emt 0:00:03]} Kd7 {[%emt 0:00:03]} 65. Kxa5 {[%emt 0:00:05]} Kd6 {[%emt 0:00:05]} 66. Kb4 {[%emt 0:00:46]} Ke5 {[%emt 0:00:36]} 67. Kc5 {[%emt 0:02:04]} Kf4 {[%emt 0:00:08]} 68. Kd4 {[%emt 0:00:20]} Kxg4 {[%emt 0:00:12]} 69. Ke4 {[%emt 0:00:05]} Kh3 {[%emt 0:00:24]} 70. a5 {[%emt 0:00:02]} g4 {[%emt 0:00:12]} 71. a6 {[%emt 0:00:02]} g3 {[%emt 0:00:18]} 72. a7 {[%emt 0:00:06]} g2 {[%emt 0:00:11]} 73. a8=Q {[%emt 0:00:04]} g1=Q {[%emt 0:00:16]} 74. Qh8+ {[%emt 0:00:03]} Kg2 {[%emt 0:00:10]} 75. Qg7+ {[%emt 0:00:06]} Kf2 {[%emt 0:00:07]} 76. Qxg1+ {[%emt 0:00:04]} 1-0